[Event "Tata Steel-B 79th"]
[Site "Wijk aan Zee"]
[Date "2017.01.24"]
[Round "9"]
[White "Xiong, Jeffery"]
[Black "Jones, Gawain C B"]
[Result "1-0"]
[ECO "A62"]
[WhiteElo "2667"]
[BlackElo "2665"]
[Annotator "Ramirez Alvarez,A"]
[PlyCount "109"]
[EventDate "2017.01.14"]
[EventType "tourn"]
[EventRounds "13"]
[EventCountry "NED"]
[EventCategory "14"]
[SourceTitle "CBM 177"]
[Source "ChessBase"]
[SourceDate "2017.03.16"]
[SourceVersion "1"]
[SourceVersionDate "2017.03.16"]
[SourceQuality "1"]
[TimeControl "40/6000+30:20/3000+30:900+30"]

1. d4 {[%emt 0:00:00]} Nf6 {[%emt 0:00:42]} 2. c4 {[%emt 0:00:00]} g6 {[%emt 0:
00:04]} 3. Nc3 {[%emt 0:00:00]} Bg7 {[%emt 0:00:05]} 4. g3 {[%emt 0:00:00]} O-O
{[%emt 0:00:19]} 5. Bg2 {[%emt 0:00:00]} d6 {[%emt 0:00:15]} 6. Nf3 {[%emt 0:
00:07]} c5 {[%emt 0:00:11]} 7. d5 {[%emt 0:05:12]} e6 {[%emt 0:01:04]} 8. O-O {
[%emt 0:00:10]} exd5 {[%emt 0:00:13]} 9. cxd5 {[%emt 0:00:07]} Re8 {[%emt 0:00:
35]} 10. Re1 {[%emt 0:00:40]} Ne4 {[%emt 0:03:42]} 11. Nxe4 {[%emt 0:01:44]}
Rxe4 {[%emt 0:00:07]} 12. Qc2 {[%emt 0:00:43]} Bf5 $146 {[%emt 0:17:16]} (12...
Re8 13. Bg5 Qb6 14. Rab1 Nd7 15. Qa4 h6 16. Bf4 g5 17. Bd2 Nf6 18. e4 Bd7 19.
Qc2 Qd8 20. b4 Rc8 21. bxc5 Rxc5 22. Qd3 Qc8 23. Bb4 Bb5 24. Qb3 Bc4 25. Qa3
Nxe4 26. Bxc5 dxc5 27. Ne5 Bxe5 28. Bxe4 a6 29. Qf3 g4 30. Bh7+ Kf8 31. Qe3 Bg7
32. Qf4 {1-0 (32) Lei,T (2444)-Gomes,M (2354) Chengdu 2015}) 13. Bh3 {[%emt 0:
08:25]} Na6 {[%emt 0:14:25]} 14. Bxf5 {[%emt 0:02:49]} gxf5 {[%emt 0:02:07]}
15. Ng5 {[%emt 0:09:04]} Re5 {[%emt 0:03:54]} 16. Bf4 {[%emt 0:05:22]} Nb4 {
[%emt 0:00:58]} 17. Qb3 {[%emt 0:14:30]} a5 {[%emt 0:14:59]} 18. a3 {[%emt 0:
24:27]} a4 {[%emt 0:00:50]} 19. Qc4 {[%emt 0:02:31]} b5 {[%emt 0:00:50]} 20.
Qxb5 {[%emt 0:00:40]} Nc2 {[%emt 0:00:27]} 21. Bxe5 {[%emt 0:00:31]} dxe5 {
[%emt 0:04:37]} 22. Qb7 {[%emt 0:00:50]} Qe8 {[%emt 0:04:43]} 23. Nxf7 {
[%emt 0:01:34]} Rb8 {[%emt 0:04:53]} 24. Qc7 {[%emt 0:00:51]} Rc8 {[%emt 0:02:
17]} 25. Qb7 {[%emt 0:02:18]} Rb8 {[%emt 0:00:40]} 26. Qc7 {[%emt 0:00:03]} Rc8
{[%emt 0:00:08]} 27. Nd6 {[%emt 0:00:22]} Rxc7 {[%emt 0:00:07]} 28. Nxe8 {
[%emt 0:00:06]} Rd7 {[%emt 0:00:14]} 29. Nxg7 {[%emt 0:01:19]} Kxg7 {[%emt 0:
00:06]} 30. Kf1 {[%emt 0:01:13]} Nxa1 {[%emt 0:03:28]} 31. Rxa1 {[%emt 0:00:44]
} Rxd5 {[%emt 0:00:06]} 32. Rc1 {[%emt 0:00:06]} Rd2 {[%emt 0:08:42]} 33. Rxc5
{[%emt 0:00:17]} Kf6 {[%emt 0:00:10]} 34. Rc6+ {[%emt 0:03:54]} Kg5 {[%emt 0:
02:56]} 35. Rb6 {[%emt 0:02:06]} Rc2 {[%emt 0:06:39]} 36. f3 {[%emt 0:02:06]}
f4 {[%emt 0:03:09]} 37. h4+ {[%emt 0:03:19]} Kh5 {[%emt 0:00:04]} 38. gxf4 {
[%emt 0:00:06]} exf4 {[%emt 0:00:14]} 39. Rb4 {[%emt 0:00:12]} Kxh4 {[%emt 0:
03:23]} 40. Rxf4+ {[%emt 0:00:00]} Kg3 {[%emt 0:00:56]} 41. Rg4+ {[%emt 0:00:
11]} Kh3 {[%emt 0:00:06]} 42. Rxa4 {[%emt 0:00:09]} Rxb2 {[%emt 0:00:06]} 43.
Kf2 {[%emt 0:00:09]} h5 {[%emt 0:01:23]} 44. Ra8 {[%emt 0:06:13]} h4 {[%emt 0:
01:49]} 45. a4 {[%emt 0:05:58]} Kh2 {[%emt 0:01:21]} 46. a5 {[%emt 0:00:11]}
Rb7 {[%emt 0:08:45]} 47. Rh8 {[%emt 0:02:06]} h3 {[%emt 0:00:12]} 48. Rh4 {
[%emt 0:00:26]} Rb1 {[%emt 0:02:40]} 49. Ra4 $4 (49. a6 Ra1 50. Rh6 {and just
pushing the f-pawn wins.} Ra4 51. Rb6 Kh1 (51... Ra3 52. f4 Ra4 53. e3 Ra2+ 54.
Kf3 $18) 52. Kg3) 49... Kh1 $4 (49... Rg1 $1 50. a6 Ra1 $1 {A nice stalemate
trick.} 51. Rd4 Rxa6 52. f4 Rg6 {and in this line Black can extract his king
from h2 and draw.}) (49... Ra1 50. Rd4 Rxa5 (50... Rg1 $1 51. a6 Rg2+ 52. Ke3
Rg6 53. Ra4 Kg3 54. a7 h2 55. a8=Q h1=Q {with a likely draw as White can't use
his extra tempo.}) 51. f4 {also makes White's life more complicated, but
should be winning.}) 50. a6 h2 51. a7 Rf1+ 52. Ke3 Kg2 53. Rg4+ Kh1 54. a8=Q
Rxf3+ 55. Qxf3# 1-0